fUST/lending_fUST_20250617
["ID","MTS","AMOUNT","RATE_DAILY","PERIOD"]
[366281709,1750171845570,-460.0,0.00024136,6]
[366281710,1750171845579,-460.0,0.00024136,6]
[366281711,1750171845592,-500.0,0.00024136,6]
[366281712,1750171845602,-460.0,0.00024136,6]
[366281713,1750171845611,-585.24,0.00024136,6]
[366281714,1750171845622,-796.83,0.00024136,6]
[366281715,1750171845631,-1527.38,0.00024136,6]
[366281716,1750171845641,-460.0,0.00024136,6]
[366281717,1750171845651,-557.1491893,0.00024136,6]
[366281718,1750171845661,-6002.64,0.00024136,6]
[366281719,1750171845671,-460.0,0.00024136,6]
[366281720,1750171845680,-1050.88,0.00024136,6]
[366281721,1750171845690,-460.0,0.00024136,6]
[366281722,1750171845700,-1672.58,0.00024136,6]
[366281723,1750171845710,-612.92,0.00024136,6]
[366281724,1750171845719,-366.59827541,0.00024136,6]
[366281725,1750171845729,-460.0,0.00024136,6]
[366281726,1750171845738,-238.15013796,0.00024136,6]
[366281727,1750171845747,-3034.53,0.00024136,6]
[366281728,1750171845757,-460.0,0.00024136,6]
[366281729,1750171845767,-167.99040482,0.00024136,6]
[366281730,1750171845777,-460.0,0.00024136,6]
[366281731,1750171845786,-460.0,0.00024136,6]
[366281732,1750171845797,-835.31,0.00024136,6]
[366281733,1750171845806,-2486.88,0.00024136,6]
[366281734,1750171845816,-460.0,0.00024136,6]
[366281735,1750171845825,-986.63,0.00024136,6]
[366281736,1750171845837,-460.0,0.00024136,6]
[366281737,1750171845846,-460.0,0.00024136,6]
[366281738,1750171845856,-1260.05,0.00024136,6]
[366281739,1750171845866,-202.07196316,0.00024136,6]
[366281740,1750171845876,-460.0,0.00024136,6]
[366281741,1750171845886,-553.19,0.00024136,6]
[366281742,1750171845896,-460.0,0.00024136,6]
[366281743,1750171845906,-460.0,0.00024136,6]
[366281744,1750171845915,-2915.22,0.00024136,6]
[366281745,1750171845926,-460.0,0.00024136,6]
[366281746,1750171845936,-460.0,0.00024136,6]
[366281747,1750171845946,-393.17165351,0.00024136,6]
[366281748,1750171845956,-1419.94,0.00024136,6]
[366281749,1750171845965,-460.0,0.00024136,6]
[366281750,1750171845976,-3362.76,0.00024136,6]
[366281751,1750171845986,-583.8,0.00024136,6]
[366281752,1750171845996,-460.0,0.00024136,6]
[366281753,1750171846006,-460.0,0.00024136,6]
[366281754,1750171846016,-460.0,0.00024136,6]
[366281755,1750171846026,-559.14399013,0.00024136,6]
[366281756,1750171846035,-404.99658314,0.00024136,6]
[366281757,1750171846045,-576.07,0.00024136,6]
[366281758,1750171846054,-460.0,0.00024136,6]
[366281759,1750171846065,-460.0,0.00024136,6]
[366281760,1750171846074,-420.0,0.00024136,6]
[366281761,1750171846087,-460.0,0.00024136,6]
[366281762,1750171846097,-698.77,0.00024136,6]
[366281763,1750171846107,-475.98,0.00024136,6]
[366281764,1750171846117,-424.87900277,0.00024136,6]
[366281765,1750171846127,-7819.38,0.00024136,6]
[366281766,1750171846137,-460.0,0.00024136,6]
[366281767,1750171846146,-460.0,0.00024136,6]
[366281768,1750171846156,-410.0,0.00024136,6]
[366281769,1750171846169,-460.0,0.00024136,6]
[366281770,1750171846178,-378.19031292,0.00024136,6]
[366281771,1750171846188,-460.0,0.00024136,6]
[366281773,1750171846199,-460.0,0.00024136,6]
[366281774,1750171846208,-430.0,0.00024136,6]
[366281776,1750171846218,-358.63942026,0.00024136,6]
[366281777,1750171846228,-460.0,0.00024136,6]
[366281778,1750171846238,-1029.12,0.00024136,6]
[366281779,1750171846248,-1615.34,0.00024136,6]
[366281781,1750171846257,-460.0,0.00024136,6]
[366281783,1750171846267,-460.0,0.00024136,6]
[366281785,1750171846277,-769.22,0.00024136,6]
[366281786,1750171846287,-460.0,0.00024136,6]
[366281789,1750171846308,-460.0,0.00024136,6]
[366281790,1750171846319,-440.0,0.00024136,6]
[366281792,1750171846329,-460.0,0.00024136,6]
[366281793,1750171846342,-2087.93,0.00024136,6]
[366281794,1750171846353,-460.0,0.00024136,6]
[366281795,1750171846364,-400.0,0.00024136,6]
[366281797,1750171846374,-400.0,0.00024136,6]
[366281799,1750171846385,-398.47710096,0.00024136,6]
[366281800,1750171846395,-460.0,0.00024136,6]
[366281802,1750171846406,-430.0,0.00024136,6]
[366281803,1750171846416,-1959.67,0.00024136,6]
[366281805,1750171846427,-460.0,0.00024136,6]
[366281806,1750171846438,-892.4,0.00024136,6]
[366281807,1750171846448,-596.78,0.00024136,6]
[366281808,1750171846459,-430.4875723,0.00024136,6]
[366281809,1750171846469,-1138.05,0.00024136,6]
[366281810,1750171846479,-460.0,0.00024136,6]
[366281811,1750171846490,-460.0,0.00024136,6]
[366281812,1750171846499,-460.0,0.00024136,6]
[366281813,1750171846509,-430.0,0.00024136,6]
[366281814,1750171846519,-440.0,0.00024136,6]
[366281815,1750171846530,-460.0,0.00024136,6]
[366281816,1750171846540,-6093.9,0.00024136,6]
[366281817,1750171846551,-460.0,0.00024136,6]
[366281818,1750171846562,-918.83,0.00024136,6]
[366281819,1750171846572,-460.0,0.00024136,6]
[366281820,1750171846585,-460.0,0.00024136,6]
[366281821,1750171846595,-275.77616446,0.00024136,6]
[366281822,1750171846606,-460.0,0.00024136,6]
[366281823,1750171846616,-460.0,0.00024136,6]
[366281824,1750171846626,-460.0,0.00024136,6]
[366281825,1750171846636,-460.0,0.00024136,6]
[366281826,1750171846647,-1699.15,0.00024136,6]
[366281827,1750171846656,-460.0,0.00024136,6]
[366281828,1750171846666,-460.0,0.00024136,6]
[366281829,1750171846677,-460.0,0.00024136,6]
[366281830,1750171846687,-460.0,0.00024136,6]
[366281831,1750171846697,-460.0,0.00024136,6]
[366281832,1750171846707,-460.0,0.00024136,6]
[366281833,1750171846717,-460.0,0.00024136,6]
[366281834,1750171846727,-1188.02,0.00024136,6]
[366281835,1750171846736,-3530.89,0.00024136,6]
[366281836,1750171846746,-460.0,0.00024136,6]
[366281837,1750171846756,-272.47471781,0.00024136,6]
[366281838,1750171846766,-460.0,0.00024136,6]
[366281839,1750171846776,-551.22154743,0.00024136,6]
[366281840,1750171846786,-460.0,0.00024136,6]
[366281841,1750171846796,-169.209814,0.00024164,7]
[366281842,1750171846806,-159.481499,0.00024164,7]
[366281843,1750171846817,-151.0,0.00024164,7]
[366281844,1750171846826,-151.0,0.00024164,7]
[366281845,1750171846842,-151.0,0.00024164,7]
[366281846,1750171846852,-151.0,0.00024164,7]
[366281847,1750171846864,-460.0,0.00024164,6]
[366281848,1750171846874,-460.0,0.00024164,6]
[366281849,1750171846885,-460.0,0.00024164,6]
[366281850,1750171846895,-561.28285773,0.00024164,6]
[366281851,1750171846905,-460.0,0.00024164,6]
[366281852,1750171846915,-460.0,0.00024164,6]
[366281853,1750171846931,-170.0,0.00024164,6]
[366281854,1750171846941,-429.62828461,0.00024164,6]
[366281855,1750171846951,-460.0,0.00024164,6]
[366281856,1750171846962,-460.0,0.00024164,6]
[366281857,1750171846972,-460.0,0.00024164,6]
[366281858,1750171846982,-460.0,0.00024164,6]
[366281859,1750171846993,-460.0,0.00024164,6]
[366281860,1750171847003,-460.0,0.00024164,6]
[366281861,1750171847013,-221.81661365,0.00024164,6]
[366281862,1750171847023,-460.0,0.00024164,6]
[366281863,1750171847034,-460.0,0.00024164,6]
[366281864,1750171847044,-460.0,0.00024164,6]
[366281865,1750171847055,-460.0,0.00024164,6]
[366281866,1750171847065,-518.72,0.00024164,6]
[366281867,1750171847075,-460.0,0.00024164,6]
[366281868,1750171847090,-340.0,0.00024164,6]
[366281869,1750171847101,-399.62741147,0.00024164,6]
[366281870,1750171847112,-460.0,0.00024164,6]
[366281871,1750171847123,-460.0,0.00024164,6]
[366281872,1750171847133,-460.0,0.00024164,6]
[366281873,1750171847143,-460.0,0.00024164,6]
[366281874,1750171847154,-460.0,0.00024164,6]
[366281875,1750171847168,-1199.35,0.00024164,2]
[366281876,1750171847178,-460.0,0.00024164,6]
[366281877,1750171847188,-460.0,0.00024164,6]
[366281878,1750171847198,-460.0,0.00024164,6]
[366281879,1750171847209,-460.0,0.00024164,6]
[366281880,1750171847219,-460.0,0.00024164,6]
[366281881,1750171847230,-460.0,0.00024164,6]
[366281882,1750171847244,-460.0,0.00024164,6]
[366281883,1750171847254,-460.0,0.00024164,6]
[366281884,1750171847264,-460.0,0.00024164,6]
[366281885,1750171847275,-460.0,0.00024164,6]
[366281886,1750171847286,-503.78,0.00024164,6]
[366281887,1750171847296,-460.0,0.00024164,6]
[366281888,1750171847307,-460.0,0.00024164,6]
[366281889,1750171847317,-460.0,0.00024164,6]
[366281890,1750171847327,-460.0,0.00024164,6]
[366281891,1750171847339,-460.0,0.00024164,6]
[366281892,1750171847350,-415.20675287,0.00024164,6]
[366281893,1750171847360,-460.0,0.00024164,6]
[366281894,1750171847370,-460.0,0.00024164,6]
[366281895,1750171847380,-460.0,0.00024164,6]
[366281896,1750171847391,-460.0,0.00024164,6]
[366281897,1750171847401,-500.0,0.00024164,6]
[366281898,1750171847411,-460.0,0.00024164,6]
[366281899,1750171847422,-1380.68,0.00024164,6]
[366281900,1750171847432,-460.0,0.00024164,6]
[366281901,1750171847442,-631.87,0.00024164,6]
[366281902,1750171847452,-460.0,0.00024164,6]
[366281903,1750171847463,-406.31892712,0.00024164,6]
[366281904,1750171847596,-460.0,0.00024164,6]
[366281905,1750171847607,-460.0,0.00024164,6]
[366281906,1750171847617,-527.4,0.00024164,6]
[366281907,1750171847628,-385.65380767,0.00024164,6]
[366281908,1750171847637,-460.0,0.00024164,6]
[366281909,1750171847647,-460.0,0.00024164,6]
[366281910,1750171847657,-460.0,0.00024164,6]
[366281911,1750171847667,-460.0,0.00024164,6]
[366281912,1750171847678,-497.93,0.00024164,6]
[366281913,1750171847687,-460.0,0.00024164,6]
[366281914,1750171847697,-564.37685458,0.00024164,6]
[366281915,1750171847707,-897.13,0.00024164,6]
[366281916,1750171847717,-430.0,0.00024164,6]
[366281917,1750171847727,-560.97,0.00024164,6]
[366281918,1750171847738,-460.0,0.00024164,6]
[366281919,1750171847747,-465.36,0.00024164,6]
[366281920,1750171847757,-460.0,0.00024164,6]
[366281921,1750171847767,-151.0,0.00024164,7]
[366281922,1750171847778,-460.0,0.00024164,6]
[366281923,1750171847788,-246.13882674,0.00024164,6]
[366281924,1750171847798,-460.0,0.00024164,6]
[366281925,1750171847808,-460.0,0.00024164,6]
[366281926,1750171847818,-390.0,0.00024164,6]
[366281927,1750171847827,-460.0,0.00024164,6]
[366281928,1750171847839,-460.0,0.00024164,6]
[366281929,1750171847850,-151.0,0.00024164,7]
[366281930,1750171847860,-230.200206,0.00024164,7]
[366281931,1750171847871,-460.0,0.00024164,6]
[366281932,1750171847881,-460.0,0.00024164,6]
[366281933,1750171847892,-460.0,0.00024164,6]
[366281934,1750171847901,-190.06732633,0.00024164,6]
[366281935,1750171847911,-326.90070196,0.00024164,6]
[366281936,1750171847921,-460.0,0.00024164,6]
[366281937,1750171847931,-914.53,0.00024164,6]
[366281938,1750171847940,-460.0,0.00024164,6]
[366281939,1750171847950,-460.0,0.00024164,6]
[366281940,1750171847959,-460.0,0.00024164,6]
[366281941,1750171847969,-500.0,0.00024164,6]
[366281942,1750171847979,-460.0,0.00024164,6]
[366281943,1750171847988,-440.0,0.00024164,6]
[366281944,1750171847998,-460.0,0.00024164,6]
[366281945,1750171848008,-460.0,0.00024164,6]
[366281946,1750171848018,-460.0,0.00024164,6]
[366281947,1750171848028,-534.99,0.00024164,6]
[366281948,1750171848038,-592.61327677,0.00024164,6]
[366281949,1750171848049,-394.85902584,0.00024164,6]
[366281950,1750171848059,-460.0,0.00024164,6]
[366281951,1750171848069,-460.0,0.00024164,6]
[366281952,1750171848079,-460.0,0.00024164,6]
[366281953,1750171848091,-460.0,0.00024164,6]
[366281954,1750171848100,-151.0,0.00024164,7]
[366281955,1750171848110,-460.0,0.00024164,6]
[366281956,1750171848121,-460.0,0.00024164,6]
[366281957,1750171848131,-460.0,0.00024164,6]
[366281958,1750171848140,-460.0,0.00024164,6]
[366281959,1750171848150,-460.0,0.00024164,6]
[366281960,1750171848161,-278.915758,0.00024164,7]
[366281961,1750171848172,-460.0,0.00024164,6]
[366281962,1750171848182,-501.28,0.00024164,6]
[366281963,1750171848192,-460.0,0.00024164,6]
[366281964,1750171848203,-460.0,0.00024164,6]
[366281965,1750171848213,-377.84091838,0.00024164,6]
[366281966,1750171848223,-151.0,0.00024164,7]
[366281967,1750171848234,-460.0,0.00024164,6]
[366281968,1750171848245,-151.0,0.00024164,7]
[366281969,1750171848255,-460.0,0.00024164,6]
[366281970,1750171848264,-460.0,0.00024164,6]
[366281971,1750171848274,-460.0,0.00024164,6]
[366281972,1750171848284,-460.0,0.00024164,6]
[366281973,1750171848294,-510.72144815,0.00024164,6]
[366281974,1750171848304,-460.0,0.00024164,6]
[366281975,1750171848314,-1910.97,0.00024164,2]
[366281976,1750171848323,-460.0,0.00024164,6]
[366281977,1750171848333,-460.0,0.00024164,6]
[366281978,1750171848343,-529.5566206,0.00024164,6]
[366281979,1750171848354,-1174.19,0.00024164,6]
[366281980,1750171848363,-460.0,0.00024164,6]
[366281981,1750171848373,-460.0,0.00024164,6]
[366281982,1750171848383,-557.59991323,0.00024164,6]
[366281983,1750171848393,-460.0,0.00024164,6]
[366281984,1750171848403,-460.0,0.00024164,6]
[366281985,1750171848412,-460.0,0.00024164,6]
[366281986,1750171848422,-460.0,0.00024164,6]
[366281987,1750171848432,-977.71,0.00024164,6]
[366281988,1750171848442,-151.0,0.00024164,7]
[366281989,1750171848451,-523.03,0.00024164,6]
[366281990,1750171848461,-868.6,0.00024164,6]
[366281991,1750171848470,-460.0,0.00024164,6]
[366281992,1750171848481,-460.0,0.00024164,6]
[366281993,1750171848491,-2276.91,0.00024164,6]
[366281994,1750171848501,-460.0,0.00024164,6]
[366281995,1750171848510,-151.0,0.00024164,7]
[366281996,1750171848519,-943.67,0.00024164,6]
[366281997,1750171848529,-472.27569026,0.00024164,6]
[366281998,1750171848538,-445.54076188,0.00024164,2]
[366281999,1750171848547,-1169.74,0.00024164,6]
[366282000,1750171848557,-151.0,0.00024164,7]
[366282001,1750171848567,-460.0,0.00024164,6]
[366282002,1750171848576,-1589.79,0.00024164,6]
[366282003,1750171848587,-590.65924659,0.00024164,6]
[366282004,1750171848598,-460.0,0.00024164,6]
[366282005,1750171848608,-460.0,0.00024164,6]
[366282006,1750171848618,-460.0,0.00024164,6]
[366282007,1750171848628,-898.26,0.00024164,6]
[366282008,1750171848638,-780.03,0.00024164,6]
[366282009,1750171848648,-2669.68,0.00024164,6]
[366282010,1750171848658,-330.0,0.00024164,6]
[366282011,1750171848668,-460.0,0.00024164,6]
[366282012,1750171848678,-460.0,0.00024164,6]
[366282013,1750171848693,-460.0,0.00024164,6]
[366282014,1750171848703,-537.63,0.00024164,6]
[366282015,1750171848713,-460.0,0.00024164,6]
[366282016,1750171848723,-390.10367942,0.00024164,6]
[366282017,1750171848733,-460.0,0.00024164,6]
[366282018,1750171848743,-400.0,0.00024164,6]
[366282019,1750171848753,-1369.13,0.00024164,6]
[366282020,1750171848763,-460.0,0.00024164,6]
[366282021,1750171848774,-151.0,0.00024164,7]
[366282022,1750171848784,-1183.99,0.00024164,6]
[366282023,1750171848794,-3852.02,0.00024164,6]
[366282024,1750171848804,-460.0,0.00024164,6]
[366282025,1750171848814,-400.0,0.00024164,6]
[366282026,1750171848824,-324.3564387,0.00024164,6]
[366282027,1750171848834,-7884.57,0.00024164,6]
[366282028,1750171848843,-930.83,0.00024164,6]
[366282029,1750171848853,-460.0,0.00024164,6]
[366282030,1750171848863,-460.0,0.00024164,6]
[366282031,1750171848873,-460.0,0.00024164,6]
[366282032,1750171848883,-460.0,0.00024164,6]
[366282033,1750171848893,-460.0,0.00024164,6]
[366282034,1750171848904,-460.0,0.00024164,6]
[366282035,1750171848914,-460.0,0.00024164,6]
[366282036,1750171848925,-1413.01,0.00024164,6]
[366282037,1750171848935,-5273.74,0.00024164,6]
[366282038,1750171848945,-2262.37,0.00024164,6]
[366282039,1750171848955,-599.3,0.00024164,6]
[366282040,1750171848965,-8112.64,0.00024164,6]
[366282041,1750171848975,-726.69,0.00024164,6]
[366282042,1750171848987,-460.0,0.00024164,6]
[366282043,1750171848997,-460.0,0.00024164,6]
[366282044,1750171849008,-7017.61,0.00024164,6]
[366282045,1750171849018,-151.0,0.00024164,7]
[366282046,1750171849028,-440.0,0.00024164,6]
[366282047,1750171849038,-1314.27,0.00024164,6]
[366282048,1750171849049,-460.0,0.00024164,6]
[366282049,1750171849059,-151.0,0.00024164,7]
[366282050,1750171849069,-854.05,0.00024164,6]
[366282051,1750171849078,-460.0,0.00024164,6]
[366282052,1750171849089,-202.05553249,0.00024164,6]
[366282053,1750171849100,-460.0,0.00024164,6]
[366282054,1750171849110,-460.0,0.00024164,6]
[366282055,1750171849121,-460.0,0.00024164,6]
[366282056,1750171849131,-1052.38,0.00024164,6]
[366282057,1750171849141,-2063.9,0.00024164,6]
[366282058,1750171849152,-8799.69,0.00024164,6]
[366282059,1750171849164,-460.0,0.00024164,6]
[366282060,1750171849174,-556.8,0.00024164,6]
[366282061,1750171849184,-460.0,0.00024164,6]
[366282062,1750171849194,-460.0,0.00024164,6]
[366282063,1750171849205,-460.0,0.00024164,6]
[366282064,1750171849216,-588.36917109,0.00024164,6]
[366282065,1750171849227,-460.0,0.00024164,6]
[366282066,1750171849238,-926.43,0.00024164,6]
[366282067,1750171849248,-460.0,0.00024164,6]
[366282068,1750171849258,-1600.14,0.00024164,6]
[366282069,1750171849268,-460.0,0.00024164,6]
[366282070,1750171849277,-460.0,0.00024164,6]
[366282071,1750171849287,-506.09528701,0.00024164,6]
[366282072,1750171849297,-460.0,0.00024164,6]
[366282073,1750171849307,-796.83,0.00024164,6]
[366282074,1750171849317,-1527.38,0.00024164,6]
[366282075,1750171849327,-460.0,0.00024164,6]
[366282076,1750171849338,-6002.64,0.00024164,6]
[366282077,1750171849347,-390.05239322,0.00024164,6]
[366282078,1750171849358,-1050.88,0.00024164,6]
[366282079,1750171849368,-460.0,0.00024164,6]
[366282080,1750171849377,-1672.58,0.00024164,6]
[366282081,1750171849387,-612.92,0.00024164,6]
[366282082,1750171849397,-363.63718952,0.00024164,6]
[366282083,1750171849406,-3034.53,0.00024164,6]
[366282084,1750171849416,-460.0,0.00024164,6]
[366282085,1750171849426,-554.46771834,0.00024164,6]
[366282086,1750171849436,-460.0,0.00024164,6]
[366282087,1750171849446,-835.31,0.00024164,6]
[366282088,1750171849456,-2486.88,0.00024164,6]
[366282089,1750171849465,-460.0,0.00024164,6]
[366282090,1750171849475,-986.63,0.00024164,6]
[366282091,1750171849485,-460.0,0.00024164,6]
[366282092,1750171849594,-460.0,0.00024164,6]
[366282093,1750171849606,-1260.05,0.00024164,6]
[366282094,1750171849616,-460.0,0.00024164,6]
[366282095,1750171849625,-553.19,0.00024164,6]
[366282096,1750171849635,-176.18866545,0.00024164,6]
[366282097,1750171849645,-430.0,0.00024164,6]
[366282098,1750171849655,-2915.22,0.00024164,6]
[366282099,1750171849665,-460.0,0.00024164,6]
[366282100,1750171849674,-410.28289705,0.00024164,6]
[366282101,1750171849684,-1419.94,0.00024164,6]
[366282102,1750171849695,-460.0,0.00024164,6]
[366282103,1750171849706,-3362.76,0.00024164,6]
[366282104,1750171849716,-583.8,0.00024164,6]
[366282105,1750171849726,-380.0,0.00024164,6]
[366282106,1750171849740,-460.0,0.00024164,6]
[366282107,1750171849749,-460.0,0.00024164,6]
[366282108,1750171849759,-576.07,0.00024164,6]
[366282109,1750171849769,-460.0,0.00024164,6]
[366282110,1750171849778,-460.0,0.00024164,6]
[366282111,1750171849789,-698.77,0.00024164,6]
[366282112,1750171849799,-404.90047896,0.00024164,6]
[366282113,1750171849809,-7819.38,0.00024164,6]
[366282114,1750171849820,-460.0,0.00024164,6]
[366282115,1750171849830,-460.0,0.00024164,6]
[366282116,1750171849842,-460.0,0.00024164,6]
[366282117,1750171849852,-460.0,0.00024164,6]
[366282118,1750171849862,-420.0,0.00024164,6]
[366282119,1750171849872,-460.0,0.00024164,6]
[366282120,1750171849882,-1029.12,0.00024164,6]
[366282121,1750171849893,-1615.34,0.00024164,6]
[366282122,1750171849903,-460.0,0.00024164,6]
[366282123,1750171849915,-460.0,0.00024164,6]
[366282124,1750171849925,-769.22,0.00024164,6]
[366282125,1750171849935,-460.0,0.00024164,6]
[366282126,1750171849945,-460.0,0.00024164,6]
[366282127,1750171849955,-460.0,0.00024164,6]
[366282128,1750171849965,-2087.93,0.00024164,6]
[366282129,1750171849975,-460.0,0.00024164,6]
[366282130,1750171849985,-460.0,0.00024164,6]
[366282131,1750171849995,-1959.67,0.00024164,6]
[366282132,1750171850004,-460.0,0.00024164,6]
[366282133,1750171850014,-892.4,0.00024164,6]
[366282134,1750171850024,-596.78,0.00024164,6]
[366282135,1750171850034,-1138.05,0.00024164,6]
[366282136,1750171850044,-460.0,0.00024164,6]
[366282137,1750171850053,-460.0,0.00024164,6]
[366282138,1750171850063,-460.0,0.00024164,6]
[366282139,1750171850073,-460.0,0.00024164,6]
[366282140,1750171850083,-6093.9,0.00024164,6]
[366282141,1750171850092,-460.0,0.00024164,6]
[366282142,1750171850102,-918.83,0.00024164,6]
[366282143,1750171850112,-460.0,0.00024164,6]
[366282144,1750171850122,-460.0,0.00024164,6]
[366282145,1750171850132,-432.96604372,0.00024164,6]
[366282146,1750171850142,-460.0,0.00024164,6]
[366282147,1750171850152,-430.0,0.00024164,6]
[366282148,1750171850163,-549.16953064,0.00024164,6]
[366282149,1750171850175,-1699.15,0.00024164,6]
[366282150,1750171850184,-460.0,0.00024164,6]
[366282151,1750171850195,-460.0,0.00024164,6]
[366282152,1750171850206,-460.0,0.00024164,6]
[366282153,1750171850216,-400.0,0.00024164,6]
[366282154,1750171850227,-460.0,0.00024164,6]
[366282155,1750171850237,-460.0,0.00024164,6]
[366282156,1750171850249,-320.0,0.00024164,6]
[366282157,1750171850261,-1188.02,0.00024164,6]
[366282158,1750171850271,-3530.89,0.00024164,6]
[366282159,1750171850281,-460.0,0.00024164,6]
[366282160,1750171850291,-348.46,0.00024164,6]
[366282161,1750171850300,-500.0,0.00024173,2]
[366282162,1750171850311,-500.0,0.00024173,2]
[366282163,1750171850320,-574.4749496,0.00024173,2]
[366282164,1750171850330,-503.59910326,0.00024173,2]
[366282165,1750171850341,-500.0,0.00024173,2]
[366282166,1750171850351,-307.11147038,0.00024176,10]
[366282167,1750171850361,-1747.0,0.00024182,3]
[366282168,1750171850371,-156.01367261,0.00024182,3]
[366282169,1750171850381,-317.0,0.00024182,3]
[366282170,1750171850392,-317.0,0.00024182,3]
[366282171,1750171850402,-317.0,0.00024182,3]
[366282172,1750171850412,-317.0,0.00024182,3]
[366282173,1750171850422,-317.0,0.00024182,3]
[366282174,1750171850432,-317.0,0.00024182,3]
[366282175,1750171850442,-317.0,0.00024182,3]
[366282176,1750171850452,-317.0,0.00024182,3]
[366282177,1750171850462,-317.0,0.00024182,3]
[366282178,1750171850471,-317.0,0.00024182,3]
[366282179,1750171850482,-317.0,0.00024182,3]
[366282180,1750171850493,-317.0,0.00024182,3]
[366282181,1750171850503,-317.0,0.00024182,3]
[366282182,1750171850514,-7216.92706208,0.0002419,2]
[366282183,1750171850524,-16504.13797658,0.0002419,2]
[366282184,1750171850535,-260.439774,0.00024191,7]
[366282185,1750171850544,-151.0,0.00024191,7]
[366282186,1750171850555,-151.0,0.00024191,7]
[366282187,1750171850565,-163.249263,0.00024191,7]
[366282188,1750171850575,-169.209814,0.00024191,7]
[366282189,1750171850586,-151.0,0.00024191,7]
[366282190,1750171850596,-151.0,0.00024191,7]
[366282191,1750171850606,-460.0,0.00024191,6]
[366282192,1750171850616,-460.0,0.00024191,6]
[366282193,1750171850625,-460.0,0.00024191,6]
[366282194,1750171850635,-460.0,0.00024191,6]
[366282195,1750171850644,-460.0,0.00024191,6]
[366282196,1750171850655,-460.0,0.00024191,6]
[366282197,1750171850666,-460.0,0.00024191,6]
[366282198,1750171850675,-460.0,0.00024191,6]
[366282199,1750171850685,-596.9162942,0.00024191,6]
[366282200,1750171850694,-460.0,0.00024191,6]
[366282201,1750171850703,-460.0,0.00024191,6]
[366282202,1750171850713,-250.9535,0.00024191,6]
[366282203,1750171850722,-460.0,0.00024191,6]
[366282204,1750171850732,-440.0,0.00024191,6]
[366282205,1750171850742,-518.72,0.00024191,6]
[366282206,1750171850751,-460.0,0.00024191,6]
[366282207,1750171850761,-151.0,0.00024191,6]
[366282208,1750171850770,-460.0,0.00024191,6]
[366282209,1750171850780,-151.0,0.00024191,6]
[366282210,1750171850790,-151.0,0.00024191,6]
[366282211,1750171850800,-460.0,0.00024191,6]
[366282212,1750171850810,-420.0,0.00024191,6]
[366282213,1750171850820,-460.0,0.00024191,6]
[366282214,1750171850830,-460.0,0.00024191,6]
[366282215,1750171850842,-1199.35,0.00024191,2]
[366282216,1750171850852,-460.0,0.00024191,6]
[366282217,1750171850862,-460.0,0.00024191,6]
[366282218,1750171850871,-460.0,0.00024191,6]
[366282219,1750171850882,-460.0,0.00024191,6]
[366282220,1750171850891,-460.0,0.00024191,6]